bitfinex-derivatives/quotes_ETHF0:USTF0_20250810
["timestamp","ask_amount","ask_price","bid_price","bid_amount"]
[1754814899642,1.2848,4216.4,4216.3,1.5855]
[1754814900241,1.2848,4216.4,4215.8,0.47436]
[1754814900242,0.6048,4216.0,4215.9,1.0541]
[1754814900442,0.47436,4215.9,4215.5,3.8823]
[1754814900645,1.2848,4215.6,4215.5,3.3915]
[1754814901144,1.2848,4215.6,4215.5,4.7933]
[1754814901546,1.1035,4215.6,4215.5,4.7933]
[1754814901845,0.1699,4215.6,4215.5,4.7933]
[1754814902045,1.2848,4216.2,4216.1,0.911]
[1754814902239,1.2848,4216.2,4215.8,0.2759]
[1754814902240,0.2745,4216.1,4215.8,0.2759]
[1754814902446,4.36209,4216.5,4215.8,0.9504]
[1754814902640,3.2078,4216.5,4216.0,0.2759]
[1754814902945,0.829,4216.4,4216.3,1.5855]
[1754814903143,1.2848,4216.4,4216.3,1.5855]
[1754814903339,1.2848,4216.4,4216.3,0.911]
[1754814903535,1.2848,4216.4,4216.3,1.5855]
[1754814904044,0.2745,4216.7,4216.3,2.0598]
[1754814904245,0.8499,4216.7,4216.6,0.6351]
[1754814904438,0.68,4217.4,4216.9,0.911]
[1754814904644,0.2031,4217.8,4217.2,1.5855]
[1754814904645,1.2848,4217.3,4217.2,1.5855]
[1754814906046,3.2078,4218.0,4217.2,0.9504]
[1754814906348,1.3074,4217.4,4217.3,2.0081]
[1754814906644,1.5104,4217.4,4217.3,0.2645]
[1754814907043,1.5104,4217.4,4217.3,0.7387]
[1754814907245,1.3074,4217.4,4217.3,0.4421]
[1754814907945,0.6651,4217.3,4216.8,0.6454]
[1754814908151,0.6423,4217.0,4216.9,0.2645]
[1754814908451,0.6423,4217.0,4216.9,1.5339]
[1754814908452,0.1811,4217.0,4216.9,1.5339]
[1754814909237,1.1239,4217.0,4216.9,1.5339]
[1754814909546,0.1811,4217.0,4216.9,1.5339]
[1754814909943,0.2777,4217.0,4216.9,1.5339]
[1754814910139,3.2078,4217.5,4217.3,1.5339]
[1754814910339,3.2078,4218.4,4218.2,0.624]
[1754814910543,1.3074,4218.3,4218.2,0.8899]
[1754814911049,1.3074,4218.3,4218.2,0.624]
[1754814911238,1.3074,4218.3,4218.2,0.8885]
[1754814911443,1.3074,4217.5,4217.4,0.8885]
[1754814911844,1.5104,4217.5,4217.3,3.2078]
[1754814912039,1.5104,4217.4,4217.1,0.2645]
[1754814912245,0.6423,4217.2,4217.1,0.5289]
[1754814912451,1.5104,4217.2,4217.1,0.2645]
[1754814912646,1.3074,4216.8,4216.7,0.2645]
[1754814913351,1.5104,4216.8,4216.7,0.2645]
[1754814913547,1.5104,4216.8,4216.3,0.6454]
[1754814913548,1.3074,4216.4,4216.3,1.5339]
[1754814913745,1.3074,4216.4,4216.3,0.8885]
[1754814914745,1.5104,4216.3,4216.2,0.2645]
[1754814914940,0.6423,4216.0,4215.9,0.2645]
[1754814915142,1.3074,4215.6,4215.5,3.4723]
[1754814915450,1.3074,4215.7,4215.6,1.5339]
[1754814915647,1.3074,4215.7,4215.6,0.7065]
[1754814915848,1.27671757,4218.0,4216.3,0.5304]
[1754814916047,3.2078,4218.4,4218.0,0.9099]
[1754814916355,2.87290205,4219.7,4218.0,0.9099]
[1754814916356,0.2667,4220.6,4218.8,0.2615]
[1754814916550,3.2078,4220.0,4219.1,0.3795]
[1754814916850,18.506,4222.4,4219.7,0.641]
[1754814916851,3.2078,4220.7,4219.7,0.641]
[1754814917152,3.2078,4221.3,4220.1,0.3795]
[1754814917351,0.2667,4221.2,4220.1,0.3795]
[1754814917757,3.2078,4221.3,4220.1,0.3795]
[1754814917758,0.2667,4221.0,4220.1,0.3795]
[1754814917946,0.2667,4221.0,4220.1,0.641]
[1754814918251,0.2615,4220.2,4219.5,0.3795]
[1754814918552,0.2667,4219.3,4218.9,0.3795]
[1754814918847,0.6651,4219.4,4218.7,3.2078]
[1754814919045,0.2667,4219.3,4218.8,0.3795]
[1754814919241,0.6651,4219.6,4218.8,0.3795]
[1754814919442,0.2667,4219.5,4219.2,3.2078]
[1754814919646,0.2667,4219.5,4219.2,2.96440241]
[1754814919849,0.2615,4219.6,4219.2,2.96440241]
[1754814920050,0.2667,4219.7,4219.2,2.96440241]
[1754814920246,0.9318,4219.3,4219.2,2.96440241]
[1754814921246,0.9318,4219.2,4217.9,3.2078]
[1754814921447,0.5282,4218.6,4218.0,0.3497]
[1754814921753,3.2078,4219.3,4218.0,0.3497]
[1754814921754,0.47403,4218.9,4218.0,0.3497]
[1754814921954,0.9318,4218.8,4218.0,0.3497]
[1754814922155,0.4036,4218.8,4218.0,0.3497]
[1754814922452,0.47408,4218.4,4217.9,3.2078]
[1754814922654,0.9318,4218.3,4217.9,3.2078]
[1754814922851,0.6651,4218.2,4217.9,3.2078]
[1754814923046,0.9318,4218.0,4217.9,3.2078]
[1754814923248,0.5282,4218.0,4217.9,3.5575]
[1754814924348,0.9318,4218.0,4217.9,3.5575]
[1754814924550,0.9318,4218.0,4217.9,3.2078]
[1754814925462,0.9318,4218.1,4217.4,3.2078]
[1754814925648,3.2078,4218.2,4217.4,3.2078]
[1754814925845,0.47417,4217.6,4217.4,3.2078]
[1754814926050,0.9318,4218.1,4216.9,3.2078]
[1754814926248,0.9318,4217.6,4216.9,3.2078]
[1754814926749,0.9318,4217.1,4216.9,3.2078]
[1754814926951,0.2615,4217.5,4216.9,3.5575]
[1754814927155,0.2667,4217.4,4216.9,3.5575]
[1754814927353,0.2615,4217.5,4216.9,3.5575]
[1754814927354,0.47418,4217.5,4216.9,3.2078]
[1754814927554,0.9318,4217.3,4216.9,3.2078]
[1754814927853,0.9318,4217.1,4216.9,3.2078]
[1754814928051,0.47425,4216.9,4216.4,3.2078]
[1754814928450,0.9318,4216.7,4216.4,3.2078]
[1754814928646,0.47426,4216.8,4216.4,3.2078]
[1754814928853,0.9318,4216.5,4216.4,3.2078]
[1754814930549,0.4743,4216.4,4215.9,3.2078]
[1754814930850,0.9318,4216.7,4215.9,3.2078]
[1754814931051,0.9318,4216.0,4215.9,3.2078]
[1754814932453,0.2615,4215.9,4215.2,0.3498]
[1754814932753,0.2667,4215.4,4215.1,3.2078]
[1754814932954,0.47443,4215.4,4215.1,3.2078]
[1754814933154,0.47441,4215.5,4215.1,3.2078]
[1754814933453,0.2615,4214.8,4214.2,0.3795]
[1754814933652,0.2615,4214.8,4214.0,0.644]
[1754814933653,0.47452,4214.5,4214.0,0.644]
[1754814933854,0.9318,4214.2,4214.0,0.644]
[1754814934051,0.9318,4214.1,4214.0,0.644]
[1754814934249,0.9318,4214.1,4213.5,0.2659]
[1754814934561,0.9318,4214.3,4213.7,0.2645]
[1754814934757,4.1396,4214.3,4213.7,0.2645]
[1754814935357,0.47455,4214.3,4213.7,0.2645]
[1754814935660,0.6819,4213.9,4213.8,0.2688]
[1754814936053,0.6916,4213.9,4213.4,3.2078]
[1754814936251,0.47454,4214.3,4213.5,0.2688]
[1754814936460,0.47456,4214.1,4213.5,0.2688]
[1754814936655,0.9573,4213.8,4213.5,0.2688]
[1754814936960,3.2078,4214.4,4213.4,3.2078]
[1754814936961,0.9573,4213.7,4213.4,3.2078]
[1754814937262,0.9573,4213.5,4213.4,3.2078]
[1754814938054,3.2078,4214.9,4214.4,0.47452]
[1754814938257,0.9573,4214.8,4214.5,0.47451]
[1754814938450,0.00686786,4215.3,4214.5,0.47451]
[1754814938451,0.5411,4215.2,4214.7,0.9539]
[1754814938652,0.9573,4215.0,4214.8,0.9539]
[1754814938856,0.2657,4214.9,4214.8,0.9539]
[1754814940161,0.48129786,4215.3,4214.7,0.47448]
[1754814940162,0.00686786,4215.3,4214.7,0.47448]
[1754814940359,0.4162,4215.1,4214.8,0.4123]
[1754814940658,0.2657,4215.0,4214.9,0.6811]
[1754814940851,0.9573,4215.0,4214.5,3.2078]
[1754814941057,0.47446,4215.1,4214.6,0.2688]
[1754814941257,0.6916,4214.9,4214.7,0.6811]
[1754814941460,0.74699786,4215.3,4214.6,0.9539]
[1754814941762,0.27256786,4215.3,4214.8,0.47448]
[1754814941957,0.68876786,4215.3,4215.1,0.2728]
[1754814942160,0.68876786,4215.3,4215.0,3.2078]
[1754814942360,0.00686786,4215.3,4215.2,0.9539]
[1754814943255,3.2078,4216.7,4216.2,0.6851]
[1754814943461,0.2754,4216.4,4216.3,0.6851]
[1754814943655,0.47434,4216.1,4215.8,3.6201]
[1754814943964,0.47426,4216.8,4216.0,0.47434]
[1754814944263,0.47428,4216.6,4215.8,4.36727]
[1754814944459,0.2657,4216.2,4215.8,3.2078]
[1754814944665,0.9573,4215.9,4215.8,3.8929]
[1754814945761,0.9573,4215.9,4215.8,3.2078]
[1754814946359,0.4162,4215.6,4215.3,0.4123]
[1754814946559,0.47437,4215.8,4215.1,4.09454]
[1754814946760,0.9573,4215.3,4215.1,3.2078]
[1754814946965,0.6819,4215.2,4215.1,3.2078]
[1754814947165,0.9573,4215.2,4215.1,3.2078]
[1754814948060,0.9573,4214.5,4214.4,3.2078]
[1754814948265,0.47453,4214.4,4214.1,0.4123]
[1754814948457,0.9573,4214.1,4213.9,3.2078]
[1754814948660,0.9573,4214.0,4213.9,3.2078]
[1754814948858,0.9573,4214.0,4213.9,3.6201]
[1754814949056,0.9573,4214.0,4213.9,3.2078]
[1754814950462,1.43187,4214.0,4213.9,3.2078]
[1754814950666,0.9573,4214.0,4213.9,3.2078]
[1754814951264,0.9573,4214.0,4213.4,3.6201]
[1754814951661,1.43188,4214.0,4213.4,3.6201]
[1754814952869,0.4746,4213.8,4213.4,3.6201]
[1754814953069,0.2657,4213.7,4213.5,0.6851]
[1754814953362,0.5411,4213.6,4213.5,0.6851]
[1754814953671,0.9573,4213.6,4213.5,0.4123]
[1754814953965,0.47464,4213.4,4212.8,0.6851]
[1754814954168,0.4162,4213.3,4212.8,0.6851]
[1754814954365,0.9573,4213.1,4212.9,0.4123]
[1754814954663,0.9573,4213.0,4212.7,3.2078]
[1754814954868,0.47468,4213.0,4212.7,3.6201]
[1754814955069,0.6916,4212.9,4212.7,3.6201]
[1754814955270,0.5411,4212.8,4212.7,3.8929]
[1754814955668,0.9573,4212.8,4212.7,3.2078]
[1754814956374,0.9573,4212.7,4212.4,0.6851]
[1754814956672,0.2754,4212.5,4212.4,0.2728]
[1754814957078,0.5411,4212.5,4212.4,0.2728]
[1754814957266,0.5411,4212.5,4212.4,0.6851]
[1754814958270,0.2754,4212.2,4212.1,0.4123]
[1754814958479,0.6819,4212.2,4212.1,0.4123]
[1754814958771,0.6819,4212.2,4212.1,0.6851]
[1754814958971,0.2657,4212.2,4212.0,3.2078]
[1754814959276,0.2754,4212.1,4212.0,4.1617]
[1754814959474,3.2078,4212.8,4212.0,3.2078]
[1754814959663,0.9573,4212.6,4212.0,3.2078]
[1754814959868,0.47477,4212.3,4212.0,3.2078]
[1754814960177,0.9573,4212.1,4212.0,3.2078]
[1754814960879,3.2078,4212.8,4212.4,0.4123]
[1754814961173,0.2754,4213.4,4213.1,1.42857]
[1754814961471,0.2754,4213.9,4213.1,1.18669]
[1754814961675,0.2754,4213.9,4213.8,0.47459]
[1754814961974,3.2078,4214.0,4213.8,0.2688]
[1754814962275,3.4832,4214.0,4213.9,0.6851]
[1754814962573,3.2078,4214.0,4213.9,0.6851]
[1754814962871,3.2078,4214.0,4213.9,0.9539]
[1754814963174,3.4832,4214.0,4213.9,0.9539]
[1754814963375,3.4832,4214.0,4213.9,0.6851]
[1754814963575,3.7489,4214.0,4213.9,0.6851]
[1754814963872,4.1651,4214.0,4213.9,0.6851]
[1754814965473,0.9573,4214.0,4213.9,0.4123]
[1754814966970,0.47455,4214.2,4213.5,3.95122]
[1754814967170,0.9449,4214.1,4213.6,0.4005]
[1754814967578,0.47454,4214.3,4213.5,3.68242]
[1754814967778,0.47454,4214.3,4213.7,0.47461]
[1754814967977,0.6613,4214.1,4213.8,0.4005]
[1754814968179,0.6767,4214.0,4213.9,0.6705]
[1754814968772,0.9449,4214.0,4213.9,0.6705]
[1754814969577,1.5751,4214.0,4213.9,1.2899]
[1754814970074,0.4355,4215.0,4214.9,1.58297]
[1754814970377,0.5518,4215.2,4215.0,0.9442]
[1754814970574,3.68215,4216.0,4215.2,0.47444]
[1754814970775,3.68215,4216.0,4215.2,0.87494]
[1754814971079,0.9449,4215.7,4215.2,0.4005]
[1754814971281,0.47436,4215.9,4215.2,0.27]
[1754814971477,0.9449,4215.4,4215.3,0.4005]
[1754814972477,0.5518,4215.4,4215.3,0.6705]
[1754814973876,0.9449,4215.4,4215.3,0.6705]
[1754814974583,2.04951,4215.4,4215.3,0.1847]
[1754814974786,0.6302,4215.4,4215.0,3.2078]
[1754814974978,1.5751,4215.2,4215.1,0.8385]
[1754814975180,1.5751,4215.2,4215.0,3.2078]
[1754814975385,1.182,4214.5,4214.4,0.6194]
[1754814975686,0.9449,4214.2,4214.1,3.2078]
[1754814976074,0.51688128,4214.9,4214.1,3.2078]
[1754814976277,1.66060103,4215.5,4214.7,0.9442]
[1754814976480,0.47441,4215.4,4214.9,0.4005]
[1754814976682,0.47441,4215.5,4214.9,0.47446]
[1754814976885,0.2682,4215.3,4215.0,0.9442]
[1754814977082,0.3931,4215.4,4215.2,0.6705]
[1754814977286,0.2836,4215.3,4215.2,0.6705]
[1754814977787,0.5518,4215.3,4215.2,0.6705]
[1754814978396,0.9449,4215.3,4215.2,0.6705]
[1754814979193,0.9449,4215.3,4215.2,0.4005]
[1754814979598,1.5751,4215.3,4215.2,1.0199]
[1754814979794,1.5751,4215.3,4215.2,1.2899]
[1754814981992,0.78567303,4215.6,4215.5,0.6194]
[1754814982194,0.2682,4215.6,4215.5,1.5636]
[1754814982599,0.4495,4215.6,4215.5,1.5636]
[1754814982795,1.182,4215.6,4215.5,1.2899]
[1754814982995,1.5751,4215.6,4215.5,1.2899]
[1754814983196,1.5751,4215.6,4215.5,1.0199]
[1754814984097,1.5751,4215.6,4215.5,0.1847]
[1754814984301,0.9449,4215.6,4215.1,3.8783]
[1754814984491,1.5751,4215.2,4215.1,4.4977]
[1754814984890,1.5751,4215.2,4213.6,1.18653]
[1754814984891,1.2915,4214.5,4214.4,4.0463]
[1754814985094,1.2915,4214.5,4214.4,3.2078]
[1754814985095,1.5751,4214.5,4214.4,3.2078]
[1754814985293,1.5751,4214.5,4214.0,0.4005]
[1754814985294,0.6302,4214.1,4214.0,0.4005]
[1754814985493,1.5751,4214.1,4214.0,0.4005]
[1754814985697,0.8984,4214.1,4213.9,3.2078]
[1754814985895,1.5751,4214.0,4213.9,3.2078]
[1754814988203,2.04974,4213.4,4213.3,3.2078]
[1754814988803,1.10488,4213.0,4212.9,0.4005]
[1754814989003,0.6302,4213.0,4212.7,3.2078]
[1754814989306,3.2078,4213.6,4212.7,4.4977]
[1754814989307,1.5751,4212.8,4212.7,4.4977]
[1754814990506,1.5751,4212.8,4212.7,4.2277]
[1754814990895,1.5751,4212.8,4212.7,3.3925]
[1754814991100,1.5751,4212.8,4212.7,3.2078]
[1754814992507,1.5751,4212.8,4212.7,3.3925]
[1754814993504,1.5751,4212.8,4212.7,4.2277]
[1754814994815,1.5751,4212.8,4212.7,3.2078]
[1754814997608,0.4019,4213.4,4212.7,3.2078]
[1754814997805,0.5372,4213.3,4213.2,1.284]
[1754814998009,1.1726,4213.3,4213.2,1.284]
[1754814998413,3.2078,4213.6,4213.5,1.10243]
[1754814998615,0.263,4214.0,4213.5,1.10243]
[1754814998817,1.5745,4214.0,4213.9,0.6278]
[1754814999005,0.6354,4213.7,4213.6,1.0166]
[1754814999211,1.5745,4213.7,4213.6,1.284]
[1754814999708,0.65868,4214.0,4213.9,0.1724]
[1754814999908,0.92168,4214.0,4213.9,1.284]
[1754815000110,0.4471,4214.0,4213.9,1.284]
[1754815000315,0.7213,4214.0,4213.9,1.284]
[1754815001224,1.5745,4214.0,4213.9,0.4531]
[1754815001514,1.5745,4214.0,4213.9,0.1724]
[1754815001908,0.47458,4213.9,4213.5,0.6562]
[1754815002112,0.6354,4213.6,4213.5,0.6278]
[1754815002313,1.1726,4213.6,4213.5,0.6278]
[1754815002920,1.3906,4213.5,4213.4,0.6278]
[1754815003216,0.263,4213.5,4213.4,1.5495]
[1754815003411,0.4746,4213.8,4213.4,1.284]
[1754815003618,0.263,4213.7,4213.6,0.6278]
[1754815003813,0.8984,4213.7,4213.6,1.284]
[1754815004015,1.1726,4213.7,4213.6,1.284]
[1754815004216,0.8984,4213.7,4213.6,1.5495]
[1754815004417,0.631,4213.7,4213.6,1.5495]
[1754815005115,0.9052,4213.7,4213.6,1.5495]
[1754815005318,1.1726,4213.7,4213.6,1.5495]
[1754815005712,0.263,4213.7,4213.6,1.5495]
[1754815007225,0.5372,4214.4,4214.3,0.2674]
[1754815007522,0.7213,4214.4,4214.3,1.5495]
[1754815007717,0.4471,4214.4,4214.3,1.5495]
[1754815007916,3.2078,4214.8,4214.6,0.4745]
[1754815008121,3.2078,4214.8,4214.7,1.5495]
[1754815008314,0.47444,4215.2,4214.9,0.6278]
[1754815008517,2.5745,4215.0,4214.9,1.284]
[1754815008715,2.5745,4215.0,4214.9,1.0166]
[1754815009221,2.5745,4215.0,4214.7,3.2078]
[1754815009222,1.5745,4214.8,4214.7,0.6278]
[1754815009413,1.5745,4214.8,4214.7,1.0166]
[1754815010122,1.5745,4214.8,4214.7,1.284]
[1754815011122,1.0,4215.0,4214.7,0.6278]
[1754815011319,2.5745,4215.0,4214.9,1.284]
[1754815011517,2.5745,4215.0,4214.6,0.2674]
[1754815011518,0.47447,4214.9,4214.6,0.2674]
[1754815011825,1.5745,4214.7,4214.6,1.284]
[1754815013322,0.7145,4214.7,4214.6,1.5495]
[1754815013819,1.5745,4214.7,4214.6,1.284]
[1754815014121,1.5745,4214.7,4214.6,0.8419]
[1754815014320,0.47455,4214.3,4214.0,3.4752]
[1754815014515,1.5745,4214.1,4214.0,3.8356]
[1754815014721,1.5745,4214.1,4214.0,3.2078]
[1754815014923,1.1726,4213.7,4213.6,1.284]
[1754815015729,1.5745,4213.7,4213.6,1.284]
[1754815016127,1.5745,4213.7,4213.6,1.0166]
[1754815018727,1.5745,4213.7,4213.6,0.6278]
[1754815018933,2.04911,4213.7,4213.5,3.2078]
[1754815019243,1.5745,4213.6,4213.5,3.769]
[1754815019434,1.5745,4213.6,4213.5,4.2244]
[1754815019936,1.5745,4213.6,4213.5,3.2078]
[1754815021327,0.6354,4213.1,4212.9,0.2674]
[1754815021534,1.5745,4212.9,4212.8,3.2078]
[1754815021734,0.51766922,4213.6,4212.3,3.2078]
[1754815021735,0.6354,4212.4,4212.3,3.2078]
[1754815021936,1.5745,4212.4,4212.3,3.3802]
[1754815023345,1.5745,4212.4,4212.3,3.2078]
[1754815027247,1.5745,4212.4,4211.5,0.268]
[1754815027248,1.6008,4211.8,4211.7,1.0378]
[1754815027442,1.6008,4211.8,4211.7,1.3058]
[1754815027840,0.47487,4211.4,4211.0,3.2078]
[1754815028039,1.39037,4211.4,4211.3,1.0378]
[1754815028236,1.39037,4211.4,4211.3,0.1712]
[1754815028437,0.6363,4211.1,4211.0,3.8322]
[1754815028642,1.6008,4211.1,4211.0,4.2456]
[1754815028849,1.6008,4211.1,4211.0,3.2078]
[1754815030148,1.6008,4211.1,4211.0,3.5575]
[1754815030348,1.6008,4211.1,4211.0,4.5136]
[1754815030644,0.9139,4212.0,4211.9,1.78061]
[1754815030843,0.1742,4211.9,4211.5,3.2078]
[1754815031043,0.6408,4212.3,4212.2,1.09917]
[1754815031349,1.6008,4212.3,4212.2,1.51257]
[1754815031740,1.6008,4212.3,4212.2,1.78057]
[1754815032245,1.1931,4212.3,4212.2,1.78057]
[1754815032442,0.6408,4212.3,4212.2,2.05337]
[1754815032643,0.2792,4212.3,4212.2,2.05337]
[1754815032844,0.9184,4212.6,4212.5,1.78054]
[1754815033040,3.2078,4213.2,4213.0,0.47468]
[1754815033243,0.6408,4213.1,4213.0,1.09908]
[1754815033447,1.1931,4213.1,4213.0,1.36708]
[1754815033647,0.6363,4213.1,4212.9,0.47469]
[1754815033849,1.6008,4213.0,4212.9,0.2747]
[1754815034350,1.6008,4213.0,4212.9,0.6881]
[1754815034550,1.6008,4213.0,4212.9,1.3058]
[1754815034749,3.2078,4213.2,4213.1,1.5786]
[1754815035550,3.487,4213.2,4213.1,1.5786]
[1754815035755,4.8086,4213.2,4213.1,1.3058]
[1754815036052,4.4009,4213.2,4213.1,1.3058]
[1754815036460,4.8086,4213.2,4213.1,1.3058]
[1754815038353,1.1931,4213.2,4213.1,1.5786]
[1754815038555,0.9184,4213.2,4213.1,1.5786]
[1754815038756,0.6869,4213.1,4212.6,0.47473]
[1754815038957,1.6008,4212.7,4212.6,0.74943]
[1754815039260,1.6008,4212.7,4212.6,1.33403]
[1754815039462,1.1931,4212.7,4212.6,1.78053]
[1754815039860,1.1931,4212.7,4212.6,2.05333]
[1754815040156,0.6408,4212.7,4212.6,2.05333]
[1754815040353,0.4534,4212.7,4212.6,2.05333]
[1754815040849,1.1931,4212.7,4212.6,1.3058]
[1754815041053,1.6008,4212.7,4212.6,1.3058]
[1754815041254,1.1931,4212.7,4212.6,1.3058]
[1754815041453,0.2776,4213.0,4212.6,1.5786]
[1754815041656,0.9155,4213.4,4213.3,0.6244]
[1754815041859,0.2792,4213.4,4213.3,1.1652]
[1754815042158,1.3216,4213.9,4213.8,0.8924]
[1754815042365,1.3216,4213.9,4213.8,1.3058]
[1754815042557,1.6008,4213.9,4213.8,1.3058]
[1754815042959,1.6008,4213.6,4213.5,3.6537]
[1754815043258,1.6008,4213.6,4213.5,1.3058]
[1754815043453,1.6008,4213.6,4213.5,1.0378]
[1754815044361,1.1931,4213.6,4213.5,1.3058]
[1754815044563,1.6008,4213.6,4213.5,0.4459]
[1754815044762,1.11092,4213.6,4213.2,0.4134]
[1754815044958,1.6008,4213.3,4213.0,3.2078]
[1754815045264,1.6008,4213.1,4213.0,3.8959]
[1754815045463,1.6008,4213.1,4213.0,3.4825]
[1754815045663,1.6008,4213.1,4213.0,3.8959]
[1754815045859,3.4854,4213.7,4213.0,4.2456]
[1754815046069,0.47462,4213.6,4213.1,0.47467]
[1754815046366,1.1931,4213.2,4213.1,0.6244]
[1754815046663,2.07547,4213.2,4213.0,3.2078]
[1754815046861,1.11097,4213.2,4213.0,3.2078]
[1754815047063,1.6008,4213.1,4213.0,3.2078]
[1754815048067,0.6363,4213.1,4213.0,0.2747]
[1754815048365,0.6363,4213.1,4213.0,1.0378]
[1754815048865,1.6008,4213.1,4213.0,1.0378]
[1754815049665,1.6008,4213.1,4213.0,1.3043]
[1754815050468,1.6008,4213.1,4213.0,1.0378]
[1754815050668,0.1742,4212.5,4212.4,3.8322]
[1754815050870,1.1931,4212.5,4212.4,4.5121]
[1754815051168,1.6008,4212.5,4212.4,4.2456]
[1754815051366,1.6008,4212.5,4212.4,3.2078]
[1754815053571,0.6363,4212.0,4211.9,4.2456]
[1754815053873,1.6008,4212.0,4211.9,4.5121]
[1754815054868,1.3232,4212.0,4211.9,3.6537]
[1754815055063,1.6008,4212.0,4211.9,3.6537]
[1754815055266,1.6008,4212.0,4211.9,4.2456]
[1754815056770,1.6008,4212.0,4211.9,3.2078]
[1754815060470,1.79249811,4212.0,4211.9,3.2078]
[1754815060869,1.2788,4211.2,4211.1,4.0398]
[1754815061079,2.03233,4211.7,4211.6,0.428]
[1754815061281,2.03233,4211.7,4211.6,1.0071]
[1754815062376,1.08886,4212.4,4212.3,1.2664]
[1754815062677,1.36756,4212.4,4212.3,1.5299]
[1754815062872,0.8928,4212.4,4212.3,1.5299]
[1754815063069,1.1621,4212.4,4212.3,1.5299]
[1754815063577,0.2622,4212.4,4212.3,1.5299]
[1754815065872,0.4408,4212.4,4212.3,1.5299]
[1754815066078,0.8928,4212.4,4212.3,1.5299]
[1754815066275,1.1621,4212.4,4212.3,1.5299]
[1754815066582,0.2787,4212.2,4211.5,4.2149]
[1754815066784,1.37468,4212.2,4212.1,0.8624]
[1754815066977,2.03228,4212.2,4212.1,1.2664]
[1754815067585,0.91558,4212.2,4212.1,1.2664]
[1754815067787,0.91558,4212.2,4212.1,1.5299]
[1754815068184,0.47476,4212.4,4212.1,1.5299]
[1754815068483,0.47476,4212.4,4212.1,3.2078]
[1754815068786,1.77009,4212.1,4212.0,0.6031]
[1754815069282,0.65343,4211.7,4211.6,4.2149]
[1754815069485,2.03233,4211.7,4211.6,4.2149]
[1754815069879,2.03233,4211.7,4211.6,4.4742]
[1754815070183,2.03233,4211.7,4211.6,0.2567]
[1754815070485,1.09607,4211.4,4211.3,1.0071]
[1754815070874,2.03237,4211.4,4211.3,1.2664]
[1754815071488,1.63697,4211.4,4211.3,1.5299]
[1754815071683,1.08897,4211.4,4211.3,1.5299]
[1754815072078,0.47485,4211.6,4211.3,0.8666]
[1754815072286,0.2622,4211.5,4211.4,1.5299]
[1754815072480,0.4408,4211.5,4211.4,1.5299]
[1754815072881,0.8928,4211.5,4211.4,1.5299]
[1754815073078,1.1621,4211.5,4211.4,1.5299]
[1754815073279,1.5575,4211.5,4211.4,1.2664]
[1754815073686,1.5575,4211.2,4211.1,4.2149]
[1754815074985,1.5575,4211.2,4211.1,4.4742]
[1754815076087,1.5575,4211.2,4211.1,4.0398]
[1754815076288,1.5575,4211.2,4211.1,3.4645]
[1754815076582,1.5575,4211.2,4211.1,3.2078]
[1754815078091,1.66216,4211.1,4210.4,3.2078]
[1754815078390,4.84483,4210.9,4210.8,0.6031]
[1754815078589,5.24023,4210.9,4210.8,1.2664]
[1754815079584,5.24023,4210.9,4210.8,1.0071]
[1754815079781,1.68057,4210.6,4210.5,0.832]
[1754815079983,2.03247,4210.6,4210.5,1.2664]
[1754815080184,2.03247,4210.6,4210.5,1.0071]
[1754815080693,3.2078,4210.9,4210.2,1.0071]
[1754815080694,2.03249,4210.3,4210.2,1.0071]
[1754815081086,2.03249,4210.3,4210.2,0.2567]
[1754815081284,3.2078,4210.9,4209.9,0.832]
[1754815081285,2.03252,4210.0,4209.9,0.832]
[1754815081483,2.03252,4210.0,4209.9,0.2567]
[1754815081694,2.03257,4209.6,4209.5,1.2664]
[1754815081888,2.03257,4209.6,4209.5,1.0071]
[1754815082089,0.47512,4209.2,4209.1,0.2567]
[1754815082295,1.5575,4209.2,4209.1,1.2664]
[1754815082487,1.5575,4209.2,4209.1,1.0071]
[1754815082887,1.5575,4209.2,4209.1,1.2664]
[1754815084200,0.6141,4209.2,4209.1,0.8624]
[1754815084505,1.5575,4209.2,4209.1,1.0071]
[1754815084685,1.09636,4208.8,4208.7,0.2567]
[1754815084890,2.03266,4208.8,4208.7,0.2567]
[1754815085288,3.5958,4208.8,4208.3,0.8511]
[1754815085493,0.9029,4208.7,4208.6,0.6298]
[1754815085691,0.9029,4208.7,4208.6,1.2991]
[1754815085890,0.47518,4208.6,4208.3,0.4083]
[1754815086099,1.5477,4208.4,4208.3,0.2617]
[1754815086488,1.5477,4208.4,4208.3,0.67]
[1754815086796,1.5477,4207.7,4207.6,0.8511]
[1754815086992,0.47529,4207.6,4207.2,0.6693]
[1754815087290,3.2078,4208.1,4207.2,0.8511]
[1754815087291,1.1597,4207.3,4207.2,0.8511]
[1754815087492,0.2779,4207.6,4207.3,0.938]
[1754815087797,1.2784,4207.5,4207.4,0.2617]
[1754815088186,1.5477,4207.5,4207.4,0.2617]
[1754815088897,1.5477,4207.2,4207.0,3.2078]
[1754815089088,2.02305,4207.1,4206.7,0.4083]
[1754815089289,2.02305,4207.1,4206.7,0.4428]
[1754815089290,1.5477,4206.8,4206.7,0.4428]
[1754815089491,1.5477,4206.8,4206.7,0.8511]
[1754815089793,4.1107,4206.8,4206.7,1.2991]
[1754815090097,1.5477,4206.8,4206.7,1.2991]